fUST/lending_fUST_20240429
["ID","MTS","AMOUNT","RATE_DAILY","PERIOD"]
[324856113,1714373493744,-2536.93,0.0001863,2]
[324856114,1714373493754,-16167.34,0.0001863,2]
[324856115,1714373493765,-3184.94,0.0001863,2]
[324856116,1714373493775,-844.47,0.0001863,2]
[324856117,1714373493786,-1248.72,0.0001863,2]
[324856118,1714373493796,-705.06,0.0001863,2]
[324856119,1714373493806,-5367.9,0.0001863,2]
[324856120,1714373493817,-500.0,0.0001863,2]
[324856121,1714373493827,-603.55,0.0001863,2]
[324856122,1714373493837,-1338.49,0.0001863,2]
[324856123,1714373493848,-752.29,0.0001863,2]
[324856124,1714373493859,-803.38,0.0001863,2]
[324856125,1714373493869,-500.0,0.0001863,2]
[324856126,1714373493879,-12574.48,0.0001863,2]
[324856127,1714373493890,-12192.24,0.0001863,2]
[324856128,1714373493900,-998.22,0.0001863,2]
[324856129,1714373493911,-589.37,0.0001863,2]
[324856130,1714373493921,-5507.92,0.0001863,2]
[324856131,1714373493931,-992.33,0.0001863,2]
[324856132,1714373493942,-153.0,0.00018795,2]
[324856133,1714373493952,-153.0,0.00018795,2]
[324856134,1714373493963,-153.0,0.00018795,2]
[324856135,1714373493973,-153.0,0.00018795,2]
[324856136,1714373493983,-8495.86467448,0.000189,2]
[324856137,1714373493993,-523.85,0.00018904,2]
[324856138,1714373494006,-508.84,0.00018904,2]
[324856139,1714373494015,-500.0,0.00018904,2]
[324856140,1714373494025,-625.82,0.00018904,2]
[324856141,1714373494034,-500.0,0.00018904,2]
[324856142,1714373494044,-500.0,0.00018904,2]
[324856143,1714373494054,-184.4602185,0.00018904,2]
[324856144,1714373494064,-1626.12,0.00018904,2]
[324856145,1714373494074,-500.0,0.00018904,2]
[324856146,1714373494084,-611.54,0.00018904,2]
[324856147,1714373494095,-559.33,0.00018904,2]
[324856148,1714373494104,-608.08,0.00018904,2]
[324856149,1714373494115,-687.07,0.00018904,2]
[324856150,1714373494124,-504.72,0.00018904,2]
[324856151,1714373494134,-832.64,0.00018904,2]
[324856152,1714373494143,-515.01,0.00018904,2]
[324856153,1714373494153,-1105.2,0.00018904,2]
[324856154,1714373494163,-630.39,0.00018904,2]
[324856155,1714373494174,-604.09,0.00018904,2]
[324856156,1714373494183,-500.0,0.00018904,2]
[324856157,1714373494192,-693.58,0.00018904,2]
[324856158,1714373494205,-598.14,0.00018904,2]
[324856159,1714373494215,-591.07,0.00018904,2]
[324856160,1714373494225,-673.38,0.00018904,2]
[324856161,1714373494238,-533.22,0.00018904,2]
[324856162,1714373494249,-1230.36,0.00018904,2]
[324856163,1714373494259,-500.0,0.00018904,2]
[324856164,1714373494271,-1147.49,0.00018904,2]
[324856165,1714373494281,-1302.49,0.00018904,2]
[324856166,1714373494290,-844.49,0.00018904,2]
[324856167,1714373494300,-614.75,0.00018904,2]
[324856168,1714373494310,-1388.78,0.00018904,2]
[324856169,1714373494321,-623.41,0.00018904,2]
[324856170,1714373494331,-797.81,0.00018904,2]
[324856171,1714373494340,-590.29,0.00018904,2]
[324856172,1714373494350,-500.0,0.00018904,2]
[324856173,1714373494360,-807.83,0.00018904,2]
[324856174,1714373494369,-607.0,0.00018904,2]
[324856175,1714373494379,-940.83,0.00018904,2]
[324856176,1714373494389,-500.0,0.00018904,2]
[324856177,1714373494399,-782.16,0.00018904,2]
[324856178,1714373494409,-500.0,0.00018904,2]
[324856179,1714373494418,-520.06,0.00018904,2]
[324856180,1714373494428,-564.0,0.00018904,2]
[324856181,1714373494437,-851.11,0.00018904,2]
[324856182,1714373494447,-510.47,0.00018904,2]
[324856183,1714373494456,-1533.33,0.00018904,2]
[324856184,1714373494466,-1895.96,0.00018904,2]
[324856185,1714373494476,-1322.31,0.00018904,2]
[324856186,1714373494485,-275.95533268,0.00018904,2]
[324856187,1714373494498,-1437.53,0.00018904,2]
[324856188,1714373494508,-1191.98,0.00018904,2]
[324856189,1714373494518,-1134.6,0.00018904,2]
[324856190,1714373494527,-1094.75,0.00018904,2]
[324856191,1714373494537,-510.32,0.00018904,2]
[324856192,1714373494547,-2552.95,0.00018904,2]
[324856193,1714373494556,-1704.43,0.00018904,2]
[324856194,1714373494566,-1486.42,0.00018904,2]
[324856195,1714373494576,-500.0,0.00018904,2]
[324856196,1714373494586,-500.0,0.00018904,2]
[324856197,1714373494595,-500.0,0.00018904,2]
[324856198,1714373494605,-725.26,0.00018904,2]
[324856199,1714373494614,-844.8,0.00018904,2]
[324856200,1714373494624,-663.85,0.00018904,2]
[324856201,1714373494634,-590.93,0.00018904,2]
[324856202,1714373494643,-963.94,0.00018904,2]
[324856203,1714373494653,-790.18,0.00018904,2]
[324856204,1714373494663,-1385.15,0.00018904,2]
[324856205,1714373494672,-904.16,0.00018904,2]
[324856206,1714373494682,-556.73,0.00018904,2]
[324856207,1714373494692,-500.0,0.00018904,2]
[324856208,1714373494702,-2612.66,0.00018904,2]
[324856209,1714373494711,-670.19,0.00018904,2]
[324856210,1714373494722,-5705.05,0.00018904,2]
[324856211,1714373494732,-3685.88,0.00018904,2]
[324856212,1714373494742,-3055.4,0.00018904,2]
[324856213,1714373494753,-500.0,0.00018904,2]
[324856214,1714373494764,-943.99,0.00018904,2]
[324856215,1714373494774,-500.0,0.00018904,2]
[324856216,1714373494784,-676.52,0.00018904,2]
[324856217,1714373494794,-2057.47,0.00018904,2]
[324856218,1714373494804,-598.25,0.00018904,2]
[324856219,1714373494814,-1272.21,0.00018904,2]
[324856220,1714373494823,-7316.87,0.00018904,2]
[324856221,1714373494833,-726.9,0.00018904,2]
[324856222,1714373494842,-797.11,0.00018904,2]
[324856223,1714373494852,-604.72,0.00018904,2]
[324856224,1714373494862,-500.0,0.00018904,2]
[324856225,1714373494872,-1382.46,0.00018904,2]
[324856226,1714373494882,-2899.35,0.00018904,2]
[324856227,1714373494892,-643.79,0.00018904,2]
[324856228,1714373494902,-1036.38,0.00018904,2]
[324856229,1714373494912,-3783.63,0.00018904,2]
[324856230,1714373494921,-567.55,0.00018904,2]
[324856231,1714373494931,-500.0,0.00018904,2]
[324856232,1714373494941,-1762.71,0.00018904,2]
[324856233,1714373494951,-544.02,0.00018904,2]
[324856234,1714373494961,-500.0,0.00018904,2]
[324856235,1714373494972,-909.69,0.00018904,2]
[324856236,1714373494982,-1544.95,0.00018904,2]
[324856237,1714373494992,-566.35,0.00018904,2]
[324856238,1714373495006,-1632.08,0.00018904,2]
[324856239,1714373495017,-2536.93,0.00018904,2]
[324856240,1714373495027,-16167.34,0.00018904,2]
[324856241,1714373495038,-3184.94,0.00018904,2]
[324856242,1714373495049,-844.47,0.00018904,2]
[324856243,1714373495059,-1248.72,0.00018904,2]
[324856244,1714373495069,-705.06,0.00018904,2]
[324856245,1714373495080,-5367.9,0.00018904,2]
[324856246,1714373495091,-500.0,0.00018904,2]
[324856247,1714373495101,-603.55,0.00018904,2]
[324856248,1714373495112,-1338.49,0.00018904,2]
[324856249,1714373495122,-752.29,0.00018904,2]
[324856250,1714373495132,-803.38,0.00018904,2]
[324856251,1714373495144,-500.0,0.00018904,2]
[324856252,1714373495154,-12574.48,0.00018904,2]
[324856253,1714373495164,-12192.24,0.00018904,2]
[324856254,1714373495175,-998.22,0.00018904,2]
[324856255,1714373495186,-589.37,0.00018904,2]
[324856256,1714373495197,-5507.92,0.00018904,2]
[324856257,1714373495212,-992.33,0.00018904,2]
[324856258,1714373495223,-620.0,0.00018946,2]
[324856259,1714373495233,-2679.0,0.00019,2]
[324856260,1714373495244,-38213.25337607,0.00019,2]
[324856261,1714373495260,-239.15022535,0.00019,2]
[324856262,1714373495272,-154.94183842,0.00019,2]
[324856263,1714373495283,-7934.04214632,0.00019,2]
[324856264,1714373495293,-154.97934571,0.00019,2]
[324856265,1714373495304,-154.92318613,0.00019,2]
[324856266,1714373495315,-183.99197408,0.000191,2]
[324856267,1714373495325,-151.0,0.0001917,2]
[324856268,1714373495335,-700.42924407,0.00019173,2]
[324856269,1714373495345,-683.25083792,0.00019174,2]
[324856270,1714373495355,-185.4848423,0.00019175,2]
[324856271,1714373495365,-401.14940536,0.00019175,2]
[324856272,1714373495375,-977.94969331,0.00019175,2]
[324856273,1714373495384,-204.46859608,0.00019176,2]
[324856274,1714373495394,-489.13513282,0.00019178,2]
[324856275,1714373495405,-500.0,0.00019178,2]
[324856276,1714373495414,-500.0,0.00019178,2]
[324856277,1714373495425,-346.35360796,0.00019178,2]
[324856278,1714373495435,-500.0,0.00019178,2]
[324856279,1714373495444,-500.0,0.00019178,2]
[324856280,1714373495454,-500.0,0.00019178,2]
[324856281,1714373495463,-300.0,0.00019178,2]
[324856282,1714373495474,-500.0,0.00019178,2]
[324856283,1714373495484,-535.5,0.00019178,2]
[324856284,1714373495494,-563.01222807,0.00019178,2]
[324856285,1714373495507,-500.0,0.00019178,2]
[324856286,1714373495517,-345.19969217,0.00019178,2]
[324856287,1714373495528,-609.45579014,0.00019178,2]
[324856288,1714373495538,-249.39818571,0.00019178,2]
[324856289,1714373495548,-500.0,0.00019178,2]
[324856290,1714373495558,-500.0,0.00019178,2]
[324856291,1714373495569,-500.0,0.00019178,2]
[324856292,1714373495579,-500.0,0.00019178,2]
[324856293,1714373495589,-605.55489826,0.00019178,2]
[324856294,1714373495598,-500.0,0.00019178,2]
[324856295,1714373495608,-500.0,0.00019178,2]
[324856296,1714373495618,-500.0,0.00019178,2]
[324856297,1714373495628,-500.0,0.00019178,2]
[324856298,1714373495638,-325.79883795,0.00019178,2]
[324856299,1714373495649,-500.0,0.00019178,2]
[324856300,1714373495659,-500.0,0.00019178,2]
[324856301,1714373495670,-500.0,0.00019178,2]
[324856302,1714373495680,-500.0,0.00019178,2]
[324856303,1714373495690,-500.0,0.00019178,2]
[324856304,1714373495700,-500.0,0.00019178,2]
[324856305,1714373495710,-500.0,0.00019178,2]
[324856306,1714373495722,-500.0,0.00019178,2]
[324856307,1714373495732,-500.0,0.00019178,2]
[324856308,1714373495742,-259.51276546,0.00019178,2]
[324856309,1714373495754,-500.0,0.00019178,2]
[324856310,1714373495764,-500.0,0.00019178,2]
[324856311,1714373495775,-500.0,0.00019178,2]
[324856312,1714373495786,-500.0,0.00019178,2]
[324856313,1714373495796,-500.0,0.00019178,2]
[324856314,1714373495806,-500.0,0.00019178,2]
[324856315,1714373495927,-500.0,0.00019178,2]
[324856316,1714373495938,-500.0,0.00019178,2]
[324856317,1714373495948,-500.0,0.00019178,2]
[324856318,1714373495958,-500.0,0.00019178,2]
[324856319,1714373495969,-500.0,0.00019178,2]
[324856320,1714373495979,-500.0,0.00019178,2]
[324856321,1714373495989,-500.0,0.00019178,2]
[324856322,1714373495999,-500.0,0.00019178,2]
[324856323,1714373496009,-477.98315394,0.00019178,2]
[324856324,1714373496019,-500.0,0.00019178,2]
[324856325,1714373496030,-500.0,0.00019178,2]
[324856326,1714373496040,-500.0,0.00019178,2]
[324856327,1714373496051,-500.0,0.00019178,2]
[324856328,1714373496061,-327.21261507,0.00019178,2]
[324856329,1714373496071,-500.0,0.00019178,2]
[324856330,1714373496081,-500.0,0.00019178,2]
[324856331,1714373496092,-500.0,0.00019178,2]
[324856332,1714373496102,-500.0,0.00019178,2]
[324856333,1714373496113,-500.0,0.00019178,2]
[324856334,1714373496123,-500.0,0.00019178,2]
[324856335,1714373496133,-500.0,0.00019178,2]
[324856336,1714373496144,-155.50864644,0.00019178,2]
[324856337,1714373496154,-500.0,0.00019178,2]
[324856338,1714373496164,-500.0,0.00019178,2]
[324856339,1714373496175,-267.19820051,0.00019178,2]
[324856340,1714373496186,-500.0,0.00019178,2]
[324856341,1714373496197,-200.39483375,0.00019178,2]
[324856342,1714373496207,-500.0,0.00019178,2]
[324856343,1714373496217,-500.0,0.00019178,2]
[324856344,1714373496229,-500.0,0.00019178,2]
[324856345,1714373496240,-500.0,0.00019178,2]
[324856346,1714373496253,-500.0,0.00019178,2]
[324856347,1714373496264,-500.0,0.00019178,2]
[324856348,1714373496275,-500.0,0.00019178,2]
[324856349,1714373496285,-500.0,0.00019178,2]
[324856350,1714373496294,-500.0,0.00019178,2]
[324856351,1714373496304,-171.75267618,0.00019178,2]
[324856352,1714373496314,-340.49461695,0.00019178,2]
[324856353,1714373496324,-500.0,0.00019178,2]
[324856354,1714373496334,-500.0,0.00019178,2]
[324856355,1714373496344,-605.02194921,0.00019178,2]
[324856356,1714373496355,-500.0,0.00019178,2]
[324856357,1714373496365,-500.0,0.00019178,2]
[324856358,1714373496376,-277.81258254,0.00019178,2]
[324856359,1714373496386,-573.62390222,0.00019178,2]
[324856360,1714373496396,-500.0,0.00019178,2]
[324856361,1714373496407,-500.0,0.00019178,2]
[324856362,1714373496418,-500.0,0.00019178,2]
[324856363,1714373496428,-500.0,0.00019178,2]
[324856364,1714373496439,-500.0,0.00019178,2]
[324856365,1714373496449,-500.0,0.00019178,2]
[324856366,1714373496459,-500.0,0.00019178,2]
[324856367,1714373496469,-500.0,0.00019178,2]
[324856368,1714373496478,-500.0,0.00019178,2]
[324856369,1714373496488,-500.0,0.00019178,2]
[324856370,1714373496500,-500.0,0.00019178,2]
[324856371,1714373496510,-500.0,0.00019178,2]
[324856372,1714373496520,-500.0,0.00019178,2]
[324856373,1714373496529,-500.0,0.00019178,2]
[324856374,1714373496539,-620.16707779,0.00019178,2]
[324856375,1714373496549,-500.0,0.00019178,2]
[324856376,1714373496559,-500.0,0.00019178,2]
[324856377,1714373496569,-500.0,0.00019178,2]
[324856378,1714373496580,-500.0,0.00019178,2]
[324856379,1714373496590,-500.0,0.00019178,2]
[324856380,1714373496600,-500.0,0.00019178,2]
[324856381,1714373496611,-500.0,0.00019178,2]
[324856382,1714373496620,-500.0,0.00019178,2]
[324856383,1714373496630,-500.0,0.00019178,2]
[324856384,1714373496641,-500.0,0.00019178,2]
[324856385,1714373496650,-400.0,0.00019178,2]
[324856386,1714373496661,-500.0,0.00019178,2]
[324856387,1714373496671,-500.0,0.00019178,2]
[324856388,1714373496681,-500.0,0.00019178,2]
[324856389,1714373496691,-500.0,0.00019178,2]
[324856390,1714373496702,-500.0,0.00019178,2]
[324856391,1714373496713,-500.0,0.00019178,2]
[324856392,1714373496723,-500.0,0.00019178,2]
[324856393,1714373496733,-500.0,0.00019178,2]
[324856394,1714373496743,-500.0,0.00019178,2]
[324856395,1714373496756,-2786.76502949,0.00019178,2]
[324856396,1714373496766,-2786.76502949,0.00019178,2]
[324856397,1714373496776,-2786.76502949,0.00019178,2]
[324856398,1714373496787,-2786.76502949,0.00019178,2]
[324856399,1714373496797,-2786.76502949,0.00019178,2]
[324856400,1714373496807,-2786.76502949,0.00019178,2]
[324856401,1714373496817,-500.0,0.00019178,2]
[324856402,1714373496827,-608.39086835,0.00019178,2]
[324856403,1714373496837,-286.27833393,0.00019178,2]
[324856404,1714373496846,-409.46012548,0.00019178,2]
[324856405,1714373496857,-500.0,0.00019178,2]
[324856406,1714373496866,-500.0,0.00019178,2]
[324856407,1714373496876,-397.29831539,0.00019178,2]
[324856408,1714373496887,-2786.76502948,0.00019178,2]
[324856409,1714373496898,-500.0,0.00019178,2]
[324856410,1714373496910,-500.0,0.00019178,2]
[324856411,1714373496920,-425.50846262,0.00019178,2]
[324856412,1714373496931,-634.20159128,0.00019178,2]
[324856413,1714373496941,-500.0,0.00019178,2]
[324856414,1714373496950,-500.0,0.00019178,2]
[324856415,1714373496961,-500.0,0.00019178,2]
[324856416,1714373496972,-614.12775929,0.00019178,2]
[324856417,1714373496982,-500.0,0.00019178,2]
[324856418,1714373496992,-500.0,0.00019178,2]
[324856419,1714373497006,-500.0,0.00019178,2]
[324856420,1714373497015,-305.03227108,0.00019178,2]
[324856421,1714373497026,-500.0,0.00019178,2]
[324856422,1714373497035,-500.0,0.00019178,2]
[324856423,1714373497045,-500.0,0.00019178,2]
[324856424,1714373497054,-500.0,0.00019178,2]
[324856425,1714373497064,-500.0,0.00019178,2]
[324856426,1714373497074,-500.0,0.00019178,2]
[324856427,1714373497084,-301.20334343,0.00019178,2]
[324856428,1714373497094,-500.0,0.00019178,2]
[324856429,1714373497104,-227.84881326,0.00019178,2]
[324856430,1714373497114,-320.08899743,0.00019178,2]
[324856431,1714373497123,-421.51725408,0.00019178,2]
[324856432,1714373497132,-500.0,0.00019178,2]
[324856433,1714373497142,-500.0,0.00019178,2]
[324856434,1714373497151,-500.0,0.00019178,2]
[324856435,1714373497160,-460.6100097,0.00019178,2]
[324856436,1714373497169,-500.0,0.00019178,2]
[324856437,1714373497178,-500.0,0.00019178,2]
[324856438,1714373497188,-500.0,0.00019178,2]
[324856439,1714373497199,-500.0,0.00019178,2]
[324856440,1714373497211,-500.0,0.00019178,2]
[324856441,1714373497221,-500.0,0.00019178,2]
[324856442,1714373497231,-500.0,0.00019178,2]
[324856443,1714373497241,-500.0,0.00019178,2]
[324856444,1714373497255,-505.42499271,0.00019178,2]
[324856445,1714373497264,-500.0,0.00019178,2]
[324856446,1714373497274,-500.0,0.00019178,2]
[324856447,1714373497285,-500.0,0.00019178,2]
[324856448,1714373497295,-500.0,0.00019178,2]
[324856449,1714373497305,-502.00264863,0.00019178,2]
[324856450,1714373497315,-500.0,0.00019178,2]
[324856451,1714373497325,-210.3932635,0.00019178,2]
[324856452,1714373497335,-320.33714495,0.00019178,2]
[324856453,1714373497345,-472.33021332,0.00019178,2]
[324856454,1714373497355,-181.80024617,0.00019178,2]
[324856455,1714373497365,-202.42723428,0.00019178,2]
[324856456,1714373497374,-523.85,0.00019178,2]
[324856457,1714373497384,-508.84,0.00019178,2]
[324856458,1714373497394,-500.0,0.00019178,2]
[324856459,1714373497404,-625.82,0.00019178,2]
[324856460,1714373497413,-500.0,0.00019178,2]
[324856461,1714373497423,-500.0,0.00019178,2]
[324856462,1714373497432,-1626.12,0.00019178,2]
[324856463,1714373497441,-500.0,0.00019178,2]
[324856464,1714373497450,-611.54,0.00019178,2]
[324856465,1714373497459,-559.33,0.00019178,2]
[324856466,1714373497468,-608.08,0.00019178,2]
[324856467,1714373497478,-687.07,0.00019178,2]
[324856468,1714373497488,-504.72,0.00019178,2]
[324856469,1714373497500,-832.64,0.00019178,2]
[324856470,1714373497509,-515.01,0.00019178,2]
[324856471,1714373497518,-1105.2,0.00019178,2]
[324856472,1714373497528,-630.39,0.00019178,2]
[324856473,1714373497537,-604.09,0.00019178,2]
[324856474,1714373497546,-500.0,0.00019178,2]
[324856475,1714373497556,-693.58,0.00019178,2]
[324856476,1714373497566,-598.14,0.00019178,2]
[324856477,1714373497575,-591.07,0.00019178,2]
[324856478,1714373497584,-673.38,0.00019178,2]
[324856479,1714373497594,-533.22,0.00019178,2]
[324856480,1714373497604,-1230.36,0.00019178,2]
[324856481,1714373497614,-500.0,0.00019178,2]
[324856482,1714373497623,-1147.49,0.00019178,2]
[324856483,1714373497633,-1302.49,0.00019178,2]
[324856484,1714373497642,-844.49,0.00019178,2]
[324856485,1714373497652,-614.75,0.00019178,2]
[324856486,1714373497661,-1388.78,0.00019178,2]
[324856487,1714373497671,-623.41,0.00019178,2]
[324856488,1714373497681,-797.81,0.00019178,2]
[324856489,1714373497691,-590.29,0.00019178,2]
[324856490,1714373497701,-500.0,0.00019178,2]
[324856491,1714373497711,-807.83,0.00019178,2]
[324856492,1714373497721,-607.0,0.00019178,2]
[324856493,1714373497730,-940.83,0.00019178,2]
[324856494,1714373497740,-500.0,0.00019178,2]
[324856495,1714373497751,-782.16,0.00019178,2]
[324856496,1714373497761,-500.0,0.00019178,2]
[324856497,1714373497770,-520.06,0.00019178,2]
[324856498,1714373497780,-564.0,0.00019178,2]
[324856499,1714373497789,-851.11,0.00019178,2]
[324856500,1714373497799,-510.47,0.00019178,2]
[324856501,1714373497808,-1533.33,0.00019178,2]
[324856502,1714373497817,-1895.96,0.00019178,2]
[324856503,1714373497827,-1322.31,0.00019178,2]
[324856504,1714373497933,-1437.53,0.00019178,2]
[324856505,1714373497944,-1191.98,0.00019178,2]
[324856506,1714373497954,-1134.6,0.00019178,2]
[324856507,1714373497963,-1094.75,0.00019178,2]
[324856508,1714373497973,-510.32,0.00019178,2]
[324856509,1714373497984,-2552.95,0.00019178,2]
[324856510,1714373497994,-1704.43,0.00019178,2]
[324856511,1714373498008,-1486.42,0.00019178,2]
[324856512,1714373498018,-492.74599017,0.00019178,2]
[324856513,1714373498027,-500.0,0.00019178,2]
[324856514,1714373498037,-500.0,0.00019178,2]
[324856515,1714373498046,-725.26,0.00019178,2]
[324856516,1714373498055,-844.8,0.00019178,2]
[324856517,1714373498065,-663.85,0.00019178,2]
[324856518,1714373498076,-590.93,0.00019178,2]
[324856519,1714373498086,-2858.95,0.00019178,2]
[324856520,1714373498097,-2858.95,0.00019178,2]
[324856521,1714373498107,-2858.95,0.00019178,2]
[324856522,1714373498117,-2858.95,0.00019178,2]
[324856523,1714373498127,-2858.95,0.00019178,2]
[324856524,1714373498136,-2858.95,0.00019178,2]
[324856525,1714373498146,-2858.95,0.00019178,2]
[324856526,1714373498156,-2858.95,0.00019178,2]
[324856527,1714373498166,-2858.95,0.00019178,2]
[324856528,1714373498175,-2858.95,0.00019178,2]
[324856529,1714373498185,-2858.95,0.00019178,2]
[324856530,1714373498196,-2858.95,0.00019178,2]
[324856531,1714373498206,-2858.95,0.00019178,2]
[324856532,1714373498216,-2858.95,0.00019178,2]
[324856533,1714373498228,-2858.95,0.00019178,2]
[324856534,1714373498238,-2858.95,0.00019178,2]
[324856535,1714373498251,-2858.95,0.00019178,2]
[324856536,1714373498261,-2858.95,0.00019178,2]
[324856537,1714373498272,-2858.95,0.00019178,2]
[324856538,1714373498282,-2858.95,0.00019178,2]
[324856539,1714373498292,-2858.95,0.00019178,2]
[324856540,1714373498303,-963.94,0.00019178,2]
[324856541,1714373498313,-790.18,0.00019178,2]
[324856542,1714373498323,-1385.15,0.00019178,2]
[324856543,1714373498334,-904.16,0.00019178,2]
[324856544,1714373498344,-556.73,0.00019178,2]
[324856545,1714373498353,-293.37202911,0.00019178,2]
[324856546,1714373498363,-2612.66,0.00019178,2]
[324856547,1714373498373,-670.19,0.00019178,2]
[324856548,1714373498382,-5705.05,0.00019178,2]
[324856549,1714373498392,-3685.88,0.00019178,2]
[324856550,1714373498403,-3055.4,0.00019178,2]
[324856551,1714373498412,-500.0,0.00019178,2]
[324856552,1714373498422,-943.99,0.00019178,2]
[324856553,1714373498432,-500.0,0.00019178,2]
[324856554,1714373498441,-676.52,0.00019178,2]
[324856555,1714373498451,-2057.47,0.00019178,2]
[324856556,1714373498460,-598.25,0.00019178,2]
[324856557,1714373498470,-1272.21,0.00019178,2]
[324856558,1714373498480,-7316.87,0.00019178,2]
[324856559,1714373498490,-726.9,0.00019178,2]
[324856560,1714373498501,-797.11,0.00019178,2]
[324856561,1714373498511,-604.72,0.00019178,2]
[324856562,1714373498521,-500.0,0.00019178,2]
[324856563,1714373498531,-1382.46,0.00019178,2]
[324856564,1714373498540,-2899.35,0.00019178,2]
[324856565,1714373498550,-643.79,0.00019178,2]
[324856566,1714373498559,-1036.38,0.00019178,2]
[324856567,1714373498569,-3783.63,0.00019178,2]
[324856568,1714373498579,-567.55,0.00019178,2]
[324856569,1714373498589,-255.67840737,0.00019178,2]
[324856570,1714373498599,-1762.71,0.00019178,2]
[324856571,1714373498608,-544.02,0.00019178,2]
[324856572,1714373498618,-500.0,0.00019178,2]
[324856573,1714373498628,-909.69,0.00019178,2]
[324856574,1714373498637,-1544.95,0.00019178,2]
[324856575,1714373498647,-566.35,0.00019178,2]
[324856576,1714373498656,-1632.08,0.00019178,2]
[324856577,1714373498665,-2536.93,0.00019178,2]
[324856578,1714373498674,-16167.34,0.00019178,2]
[324856579,1714373498684,-3184.94,0.00019178,2]
[324856580,1714373498694,-844.47,0.00019178,2]
[324856581,1714373498703,-1248.72,0.00019178,2]
[324856582,1714373498713,-705.06,0.00019178,2]
[324856583,1714373498723,-5367.9,0.00019178,2]
[324856584,1714373498732,-500.0,0.00019178,2]
[324856585,1714373498742,-603.55,0.00019178,2]
[324856586,1714373498754,-1338.49,0.00019178,2]
[324856587,1714373498763,-752.29,0.00019178,2]
[324856588,1714373498773,-803.38,0.00019178,2]
[324856589,1714373498783,-500.0,0.00019178,2]
[324856590,1714373498793,-12574.48,0.00019178,2]
[324856591,1714373498804,-12192.24,0.00019178,2]
[324856592,1714373498813,-998.22,0.00019178,2]
[324856593,1714373498823,-589.37,0.00019178,2]
[324856594,1714373498833,-992.33,0.00019178,2]
[324856595,1714373498843,-5507.92,0.00019178,2]
[324856596,1714373498853,-161.725064,0.00019178,2]
[324856597,1714373498863,-160.867754,0.00019178,2]
[324856598,1714373498873,-1092.826854,0.00019178,2]
[324856599,1714373498882,-1092.826854,0.00019178,2]
[324856600,1714373498892,-1092.826854,0.00019178,2]
[324856601,1714373498902,-1092.826854,0.00019178,2]
[324856602,1714373498911,-1092.826854,0.00019178,2]
[324856603,1714373498921,-1092.826854,0.00019178,2]
[324856604,1714373498931,-1092.826854,0.00019178,2]
[324856605,1714373498941,-1092.826854,0.00019178,2]
[324856606,1714373498950,-1092.826854,0.00019178,2]
[324856607,1714373498959,-1092.826854,0.00019178,2]
[324856608,1714373498969,-1092.826854,0.00019178,2]
[324856609,1714373498978,-1092.826854,0.00019178,2]
[324856610,1714373498988,-1092.826854,0.00019178,2]
[324856611,1714373498997,-1092.826854,0.00019178,2]
[324856612,1714373499009,-1092.826854,0.00019178,2]